Cogmind - Beta 13 @@@ ROGUE MODE // 2024.04.17 @ 19:55:13 Player: Cheeriohz Result: Destroyed by Y-45 Defender with Heavy Assault Rifle Performance ------------- Evolutions (0) 0 Regions Visited (2) 400 Robots Destroyed (41) 205 Value Destroyed (880) 880 Prototype IDs (10) 200 Alien Tech Used (0) 0 Bonus (0) 0 TOTAL SCORE: 1685 Bonus ------- None Cogmind --------- Core Integrity 0/250 Matter 300/300 Energy 250/250 System Corruption 0% Temperature Cool (9) Movement Treading (240) Ox1 Location -10/Subcaves Parts ------- > --- POWER (1) -------- Ion Engine > --- PROPULSION (2) --- Light Treads Light Treads > --- UTILITY (2) ------ High-capacity Storage Unit Improved Targeting Computer > --- WEAPON (2) ------- Spread Laser Subdweller Laser > --- INVENTORY (20) --- Subdweller Power Source Meta Core Light Treads High-capacity Battery (250) Large Matter Pod (150) Sensor Array Improved Terrain Scanner Seismic Detector Light Armor Plating Light Armor Plating Shield Generator Shield Generator Power Bank Subdweller Beam Cannon Heavy Battle Rifle Subdweller Shrapnel Launcher Subdweller Shrapnel Launcher Hammer Peak State ------------ > --- POWER ------------ Ion Engine > --- PROPULSION ------- Light Treads Spiked Treads > --- UTILITY ---------- High-capacity Storage Unit Improved Targeting Computer > --- WEAPON ----------- Spread Laser Heavy Battle Rifle > --- INVENTORY -------- Subdweller Power Source Meta Core Light Treads Light Treads Light Treads High-capacity Battery Large Matter Pod Sensor Array Improved Terrain Scanner Seismic Detector Light Armor Plating Light Armor Plating Shield Generator Shield Generator Tractor Beam Power Bank Subdweller Beam Cannon Heavy Battle Rifle Subdweller Shrapnel Launcher Hammer [Rating: 18] Favorites ----------- Power Ion Engine Engine Ion Engine Propulsion Light Treads Treads Light Treads Leg Aluminum Leg Wheel Wheel Utility High-capacity Storage Unit Device Seismic Detector Storage High-capacity Storage Unit Processor Improved Targeting Computer Weapon Spread Laser Energy Gun Spread Laser Energy Cannon Subdweller Beam Cannon Ballistic Gun Heavy Battle Rifle Build | -11 -10 -10 ------- Run | Yrd Mat Sub Slots Evolved . | . . . Power . | . . . Propulsion . | . . . Utility . | . . . Weapon . | . . . Parts Attached 29 | 4 11 14 Power 2 | . 1 1 Engine 2 | . 1 1 Core . | . . . Reactor . | . . . Propulsion 10 | 3 2 5 Treads 7 | . 2 5 Leg . | . . . Wheel 3 | 3 . . Hover . | . . . Flight . | . . . Utility 5 | 1 4 . Device 1 | 1 . . Storage 2 | . 2 . Processor 2 | . 2 . Hackware . | . . . Protection . | . . . Artifact . | . . . Weapon 12 | . 4 8 Energy Gun 7 | . 4 3 Energy Cannon 1 | . . 1 Ballistic Gun 4 | . . 4 Ballistic Cannon . | . . . Launcher . | . . . Special Weapon . | . . . Impact Weapon . | . . . Slashing Weapon . | . . . Piercing Weapon . | . . . Special Melee Weapon . | . . . Unidentified Prototypes . | . . . Parts Lost 9 | . 5 4 Power 2 | . 1 1 Propulsion 5 | . 2 3 Utility 1 | . 1 . Weapon 1 | . 1 . Highest Loss Streak 4 | . 4 2 To Critical Strikes 2 | . . 2 Average Slot Usage (%) 97 | . 94 99 Engine 13 | . 13 13 Treads 26 | . 24 27 Storage 14 | . 14 14 Processor 12 | . 9 14 Energy Gun 20 | . 24 19 Energy Cannon 1 | . . 1 Ballistic Gun 5 | . 3 7 Naked Turns . | . . . Heaviest Build 57 | 14 51 57 Greatest Support 40 | 20 40 40 Greatest Overweight (x) 4 | . 4 2 Average Overweight (x) 1 | . 1 1 Largest Inventory Capacity 20 | 8 20 20 Average Capacity 19 | 8 19 20 Most Carried 20 | 8 20 20 Average Carried 17 | 7 14 19 Final Capacity 20 | 8 20 20 Final Carried 20 | 8 20 18 Class Distribution -------------------- 100% | Mutant Dominant Class ---------------- Mutant | -10/Materials Mutant | -10/Subcaves Resources | -11 -10 -10 ----------- Run | Yrd Mat Sub Matter Collected 969 | 288 248 433 Remotely . | . . . Salvage Created 1220 | 131 661 428 Parts 92 | 14 51 27 Haulers Intercepted 2 | . 2 . Recyclers Shooed 2 | . 2 . Parts Field Recycled . | . . . Retrieved Matter . | . . . Parts Self-Destructed 11 | . . 11 Prevented . | . . . Kills | -11 -10 -10 ------- Run | Yrd Mat Sub Combat Hostiles Destroyed 28 | . 15 13 Guns 27 | . 15 12 Cannons 1 | . . 1 Classes Destroyed 8 | 2 5 1 Worker 1 | . 1 . Builder 3 | . 3 . Tunneler 4 | 4 . . Hauler 2 | . 2 . Recycler 3 | 1 2 . Swarmer 9 | . 9 . Grunt 6 | . 6 . Subdweller 13 | . . 13 Best Kill Streak 4 | 3 4 3 Combat Bots Only 4 | . 4 3 Max Kills in Single Turn 2 | 1 2 1 Gunslinging . | . . . Exploded . | . . . Melee . | . . . Uniques/NPCs Destroyed . | . . . Combat | -11 -10 -10 -------- Run | Yrd Mat Sub Hostile Shots Fired 145 | . 76 69 Missed 31 | . 19 12 Damage Taken 1721 | . 537 1184 Core 261 | . 100 161 Absorbed by Shields . | . . . Core Remaining (%) 100 | 100 . . Volleys Fired 165 | 12 69 84 Largest 2 | 2 2 2 Hottest 130 | 40 130 130 Shots Fired 273 | 24 125 124 Gun 267 | 24 125 118 Cannon 6 | . . 6 Launcher . | . . . Special . | . . . Kinetic 167 | 24 59 84 Thermal 106 | . 66 40 Explosive . | . . . Electromagnetic . | . . . Robot Hit Streak 34 | 3 12 34 Robot Miss Streak 5 | 3 5 4 Penetration Max . | . . . Secondary Targets 4 | . 2 2 Max Gunslinging Chain 1 | . 1 1 Shots Hit Robots 173 | 12 85 76 Core Hits 100 | 6 42 52 Critical Kills 1 | . . 1 Critical Parts Destroyed . | . . . Critical Strikes 1 | . . 1 Destroy 1 | . . 1 Melee Attacks . | . . . Impact . | . . . Slashing . | . . . Piercing . | . . . Sneak Attacks . | . . . Combat Hostiles . | . . . Follow-up Attacks . | . . . Damage Inflicted 2561 | 141 957 1463 Guns 2528 | 141 957 1430 Cannons 33 | . . 33 Explosions . | . . . Melee . | . . . Ramming . | . . . Kinetic 1430 | 141 396 893 Thermal 1131 | . 561 570 Explosive . | . . . Electromagnetic . | . . . Impact . | . . . Slashing . | . . . Piercing . | . . . Highest Corruption . | . . . Average Corruption . | . . . Corruption Purged . | . . . Corruption Blocked . | . . . Overload Shots . | . . . Overflow Damage . | . . . Projectiles . | . . . Explosions . | . . . Melee . | . . . Knockbacks . | . . . Impact . | . . . Kinetic . | . . . Secondary . | . . . Self-Inflicted Damage . | . . . Shots . | . . . Rammed . | . . . Targets Rammed . | . . . Kicked . | . . . Crushed . | . . . Highest Temperature 180 | . 180 18 Average Temperature 49 | . 52 8 Received Heat Transfer 363 | . 174 189 Siege Activations . | . . . Robots Corrupted . | . . . Combat Hostiles . | . . . Parts Fried . | . . . Impact Corruptions . | . . . Robots Melted . | . . . Combat Hostiles . | . . . Parts Melted 2 | . 2 . Heat Transferred 1994 | . 1287 707 Parts Sabotaged . | . . . Parts Stolen . | . . . Parts Stripped . | . . . Power Chain Reactions . | . . . Alert | -11 -10 -10 ------- Run | Yrd Mat Sub Peak Influence 366 | 25 366 . Initial 16 | . 16 . Average 135 | 12 141 . Maximum Alert Level 1 | . 1 . Low Security (%) 75 | 100 74 . Level 1 24 | . 25 . Level 2 . | . . . Level 3 . | . . . Level 4 . | . . . Level 5 . | . . . High Security . | . . . Max Security . | . . . Squads Dispatched 3 | . 3 . Investigation 1 | . 1 . Extermination . | . . . Reinforcement 2 | . 2 . Assault . | . . . Garrison . | . . . Intercept . | . . . Searches Triggered . | . . . Construction Impeded . | . . . Haulers Reinforced . | . . . Active Scanning Responses . | . . . Cargo Convoy Interrupts . | . . . Stealth | -11 -10 -10 --------- Run | Yrd Mat Sub Distress Signals 3 | . 3 . Communications Jammed . | . . . Distress Signals . | . . . Times Spotted 39 | . 25 14 Peak Tracking Total 6 | . 6 3 Tactical Retreats 1 | . 1 . Traps | -11 -10 -10 ------- Run | Yrd Mat Sub Traps Triggered 1 | . 1 . Indirectly . | . . . Trap Hack Attempts . | . . . Triggered . | . . . Disarmed . | . . . Reprogrammed . | . . . Reused . | . . . Traps Extracted . | . . . Installed . | . . . Triggered 3 | . . 3 Machines | -11 -10 -10 ---------- Run | Yrd Mat Sub Machines Disabled 1 | . . 1 Max in Single Turn 1 | . . 1 Machines Repaired . | . . . Machines Dismantled . | . . . Machines Sabotaged . | . . . Overloaded Fab Kills . | . . . Hacking | -11 -10 -10 --------- Run | Yrd Mat Sub Machines Accessed 6 | . 5 1 Terminals 5 | . 5 . Fabricators . | . . . Repair Stations . | . . . Recycling Units . | . . . Scanalyzers . | . . . Garrison Access . | . . . Total Hacks 12 | . 11 1 Successful 4 | . 3 1 Failed 8 | . 8 . Catastrophic 4 | . 4 . Database Lockouts . | . . . Manual 6 | . 6 . Terminals 11 | . 11 . Fabricators . | . . . Repair Stations . | . . . Recycling Units . | . . . Scanalyzers . | . . . Garrison Access . | . . . Terminal Hacks 4 | . 3 1 Robot Analysis 1 | . 1 . Locate Traps 1 | . 1 . Recall Reinforcements 1 | . 1 . Derelict Proto ID Bank 1 | . . 1 Fabricator Hacks . | . . . Repair Station Hacks . | . . . Recycling Unit Hacks . | . . . Scanalyzer . | . . . Garrison Access Hacks . | . . . Unauthorized Hacks . | . . . Terminals . | . . . Fabricators . | . . . Repair Stations . | . . . Recycling Units . | . . . Scanalyzers . | . . . Garrison Access . | . . . Data Cores Recovered . | . . . Used . | . . . Hacking Detections 5 | . 5 . Full Trace Events . | . . . Feedback Events . | . . . Feedback Blocked . | . . . Robot Schematics Acquired . | . . . Robots Built . | . . . Authchips . | . . . Time . | . . . Total Robot Build Rating . | . . . Part Schematics Acquired . | . . . Parts Built . | . . . Authchips . | . . . Time . | . . . Total Part Build Rating . | . . . Parts Repaired . | . . . Time . | . . . Parts Recycled . | . . . Recycled Matter . | . . . Retrieved Matter . | . . . Retrieved Components . | . . . Parts Scanalyzed . | . . . Part Schematics Acquired . | . . . Parts Damaged . | . . . Bothacking | -11 -10 -10 ------------ Run | Yrd Mat Sub Used RIF Installer . | . . . Robots Hacked . | . . . Non-combat . | . . . Combat . | . . . Robot Hacks Applied . | . . . Relay Couplers Released . | . . . Fabnet Peak Effective % . | . . . Robots Rewired . | . . . Allies Hacked . | . . . Hacks Repelled . | . . . Allies | -11 -10 -10 -------- Run | Yrd Mat Sub Total Allies . | . . . Largest Group . | . . . Highest-Rated Group . | . . . Highest-Rated Ally . | . . . Total Orders . | . . . Ally Attacks . | . . . Total Damage . | . . . Kills . | . . . Allies Corrupted . | . . . Allies Melted . | . . . Intel | -11 -10 -10 ------- Run | Yrd Mat Sub Robot Analysis Total 1 | . 1 . Derelict Logs Recovered . | . . . Drone Launches . | . . . Drone Recoveries . | . . . Exploration | -11 -10 -10 ------------- Run | Yrd Mat Sub Turns Passed 5518 | 78 1620 3820 Spaces Moved 1946 | 34 449 1463 Core . | . . . Treads 1817 | . 354 1463 Legs 22 | 22 . . Wheels 107 | 12 95 . Hover . | . . . Flight . | . . . Fastest Speed 80 | 80 80 240 Average Speed 233 | 105 212 243 Slowest Speed 320 | 120 240 320 Overloaded Moves . | . . . Propulsion Burnouts . | . . . Robots Hopped . | . . . Cave-ins Triggered . | . . . Exploration Rate (%) 54 | 4 81 79 Regions Visited 2 Branch Regions 1 Pre-discovered Areas 1 | . . 1 Known Exits Taken . | . . . Unknown Exits Taken 2 | 1 1 . Scrap Searched 5 | . . 5 Spaces Dug . | . . . Terrain Destroyed . | . . . Melee . | . . . Projectile . | . . . AOE . | . . . Terrain Rammed . | . . . Walls Destroyed . | . . . Machines Disabled . | . . . Actions | -11 -10 -10 --------- Run | Yrd Mat Sub Total 2656 | 52 1003 1601 Wait 449 | . 437 12 Move 1944 | 33 448 1463 Hop . | . . . Pick Up 36 | 2 23 11 Fast Attach 12 | 2 4 6 Attach 9 | . 4 5 Detach 5 | . 3 2 Swap 8 | 2 3 3 Drop 28 | 1 12 15 Fire 165 | 12 69 84 Melee . | . . . Ram . | . . . Kick . | . . . Crush . | . . . Escape Stasis . | . . . Rewire . | . . . Trap . | . . . Miscellaneous . | . . . Route ------- -11/Scrapyard -10/Materials (discovered 4 exits: [*Mat x2] / [*Min] / *Sub) -10/Subcaves History --------- Turn | Location | Event 1 | -11/Scrapyard | Discovered new exit (range 3) 79 | -11/Scrapyard | Entered Materials 307 | -10/Materials | Lost 4 parts (1p1n1u1w) 320 | -10/Materials | Build established: Mutant 777 | -10/Materials | Discovered new exit (range 15) 970 | -10/Materials | Discovered new exit (range 6) 1209 | -10/Materials | Discovered new exit (range 14) 1678 | -10/Materials | Discovered new exit (range 4) 1699 | -10/Materials | Entered Subcaves 1795 | -10/Subcaves | Shifting Twisted Machinery released Sub. Beam Cannon 1798 | -10/Subcaves | Shifting Twisted Machinery released Flamer 2263 | -10/Subcaves | Shifting Twisted Machinery released Sub. Shrapnel Launcher 2273 | -10/Subcaves | Shifting Twisted Machinery released Sub. Power Source 2497 | -10/Subcaves | Shifting Twisted Machinery released Hvy. Battle Rifle 2538 | -10/Subcaves | Shifting Twisted Machinery released Sub. Monowheel 2628 | -10/Subcaves | Core integrity fell below 50% 2763 | -10/Subcaves | A Subdweller sparked back to life 2800 | -10/Subcaves | Found Prototype Device 3521 | -10/Subcaves | Visited 4L-MR0's lab 3533 | -10/Subcaves | Identified Power Bank 3555 | -10/Subcaves | Found Meta Core 3767 | -10/Subcaves | Learned location of Zion (-6) 3767 | -10/Subcaves | Met a Zionite searching for "candidates" 3937 | -10/Subcaves | Core integrity fell below 20% 5427 | -10/Subcaves | A swath of the cavern ceiling suddenly collapsed 5519 | -10/Subcaves | Destroyed by Y-45 Defender with Heavy Assault Rifle Last Messages --------------- 03960_ Acquired 43 matter. 03965_ Acquired Sub. Laser. 03966_ Acquired 8 matter. 04624_ Acquired 24 matter. 04626_ Acquired 2 matter. 04926_ Subatomizers dissect the Disposable Heat Sink. 05201_ Subatomizers dissect the Disposable Heat Sink, destroying it. 05427_ Y-45 Defender crushed by falling debris. A swath of the cavern ceiling suddenly collapses. 05439_ U3-FXG(R) destroyed. 05454_ Searching scrap... 05454_ Found Sub. Shrapnel Launcher. 05454_ Found Hvy. Riot Gun. 05454_ Found 23 Matter. 05459_ Searching scrap... 05459_ Found Sub. Monowheel. 05459_ Found Sub. Machine Gun. 05459_ Found 33 Matter. 05466_ Dropped Tractor Beam. 05467_ Acquired Sub. Shrapnel Launcher. Map ----- +----------------------------------------------------+ | # #?????????????????????????????????????????### | | #???????????????????????????????????????????## | | #????????????????????????????????????????????# | | ####????????????????????????????????????????????? | | ##???????????????????????????????????????????????? | | #????????????????????????????????????????????????? | | #????????????????????????????????????????????????? | | ####?????????????????????????????????????????????? | | ##????????????????????????????????????????????? | | #????????????????????????????????????????????? | | #????????????????????????????????????????????? | | ##????????????????????????????######??????????? | | #?????????????????????????????#%[="##?????????? | | #?????????????????????????????##" [%#?????????? | | ##?????????????????????????????####&#?????????? | | #?????????????????????????????# !"#?????????? | | #????????????????????????????### ####????????? | | # #???????????????????###??????# "!%# ##?????### | | # #???????????????????;;# ?##?## & #?????# | | # #??????????????????##Y# #"### #??###?#% | | # ##??????????????????#;;; ""#"# ###??# #?? | | # #???????????????????##;# ###""# ##???# %### | | # #???????????????????##;;???###" # #???# # | | ####???????????????????#;;#####?# ##???# | | ###????????????????????##;;##"### #??## | | ##???????????#####???##@###"# #??# | | ##??????##### ###?#;;;;"# ##?# ## | | ###?#### #####;####### #?# ## | | ### #??###?????# ### & | | ### #??????????# ## ## | | ## # ##?### #####??????####### | | ######????## ##???????????# | | #????????#### #???????????# ### | | ##??????##### ##??????????## ### | | ###????# #???????????## # | | #????## ##???????????## | | ##?????# ###???????????## ### | | ## ###?????## #???????????### #### | | ### ##??????## ##????####??## ##?# | | #?## #???????# ##????? ##?#% #??# | | #??# ##???????# #######??# %#?# % ##?## | | ???#####????????# ##?# ### #?# #?##"" | | ????????????????# #??# #??# ##?# "" | | ????????????????# ##?# #?## ##??####"" | | ????????????????# #### #?# ##?????##" | | ????????????????# ## #?# ######### | | ????????????????# ### ### #?# | | ???????????????## ### ##### &% #?? | | ???????????????# ## ###?## % %##?? | | ???????????????# ##?##% ###??? | +----------------------------------------------------+ Best States ------------- Heat Dissipation 25 Energy Generation 10 Energy Capacity 250 Matter Stores 300 Matter Capacity 300 Sight Range 16 Terrain Scan Density 10 Evasion (%) 45 Targeting Accuracy 6 Recoil Reduction 2 Item Schematics ----------------- None Robot Schematics ------------------ None Fabricated ------------ Nothing Alien Tech Used ----------------- None Achievements -------------- None Challenges ------------ None Game ------ Seed SlugVariableSuite Manual? 0 Play Time 00:22:09 Cumulative 134.2 hours Start 2024.04.17 @ 18:59:18 End 2024.04.17 @ 19:55:13 Sessions 1 Manual Loads 0 Difficulty Rogue Special Mode None Game No. 122 Rogue 122 Adventurer 0 Explorer 0 Win Type - Total 3 Types 2/0/0/1/0/0/0/0/0 Lore% 53 Gallery% 71 Achievement% 55 Wizard Run 0 Options --------- Layout 2 ASCII 0 Keyboard 1 Movement Numpad Keybinds 0 Fullscreen 1 Font 32/SmallcapsGlow Map View 77x44 Zoom Use 0% Tactical HUD 1 Map Filters NONE Filters NONE Steam 1 RUN: d3a1483e-25d5-4e17-9039-fd8e03a432f3